[Event "Early-Titled-Tuesday-Blitz-September-26-2023"]
[Site "Chess.com"]
[Date "2023.09.26"]
[Round "3"]
[White "Balla_Tamas"]
[Black "karinachess1"]
[Result "1-0"]
[WhiteElo "2429"]
[BlackElo "2602"]
[TimeControl "180+1"]
[EndTime "8:29:06 PDT"]
[Termination "Balla_Tamas won by resignation"]

1. e4 {[%clk 0:03:00.9]} 1... e5 {[%clk 0:02:58.3]} 2. Nf3 {[%clk 0:02:57.9]}
2... Nc6 {[%clk 0:02:58.3]} 3. d4 {[%clk 0:02:57.8]} 3... exd4 {[%clk
0:02:58.3]} 4. Nxd4 {[%clk 0:02:58.7]} 4... Bc5 {[%clk 0:02:58.1]} 5. Nb3 {[%clk
0:02:58.7]} 5... Bb6 {[%clk 0:02:58.4]} 6. Nc3 {[%clk 0:02:59.4]} 6... Nf6
{[%clk 0:02:58.5]} 7. Qe2 {[%clk 0:02:59.7]} 7... O-O {[%clk 0:02:57.3]} 8. Be3
{[%clk 0:03:00.3]} 8... d5 {[%clk 0:02:49.5]} 9. O-O-O {[%clk 0:02:48]} 9... d4
{[%clk 0:02:45.7]} 10. f3 {[%clk 0:02:46.3]} 10... a5 {[%clk 0:02:08.9]} 11. a4
{[%clk 0:02:27.9]} 11... Be6 {[%clk 0:01:57.7]} 12. Nb5 {[%clk 0:02:11.4]} 12...
Bxb3 {[%clk 0:01:45.8]} 13. cxb3 {[%clk 0:02:12.3]} 13... Qd7 {[%clk 0:01:44.5]}
14. Bg5 {[%clk 0:01:58.2]} 14... Qe6 {[%clk 0:01:30]} 15. Qc2 {[%clk 0:01:34.7]}
15... Nd7 {[%clk 0:01:22]} 16. Bc4 {[%clk 0:01:32.1]} 16... Qg6 {[%clk
0:01:14.6]} 17. Bd2 {[%clk 0:01:32.1]} 17... Nc5 {[%clk 0:01:07]} 18. h4 {[%clk
0:01:28.2]} 18... Rad8 {[%clk 0:00:59.1]} 19. g4 {[%clk 0:01:23.4]} 19... d3
{[%clk 0:00:55.8]} 20. Qc3 {[%clk 0:01:20.3]} 20... Nb4 {[%clk 0:00:54]} 21. Kb1
{[%clk 0:01:17.5]} 21... c6 {[%clk 0:00:52.5]} 22. Na3 {[%clk 0:01:06.1]} 22...
Qd6 {[%clk 0:00:40.5]} 23. h5 {[%clk 0:00:58.8]} 23... Ne6 {[%clk 0:00:39.2]}
24. Bxe6 {[%clk 0:00:44.5]} 24... Qxe6 {[%clk 0:00:38.9]} 25. Nc4 {[%clk
0:00:43.5]} 25... Bd4 {[%clk 0:00:39.2]} 26. Qc1 {[%clk 0:00:43.4]} 26... b5
{[%clk 0:00:31.2]} 27. Bxb4 {[%clk 0:00:33.3]} 27... axb4 {[%clk 0:00:25.1]} 28.
Nd2 {[%clk 0:00:28.6]} 28... bxa4 {[%clk 0:00:23.3]} 29. bxa4 {[%clk 0:00:25.8]}
29... Ra8 {[%clk 0:00:19.4]} 30. Qc4 {[%clk 0:00:26.2]} 30... Rxa4 {[%clk
0:00:16.1]} 31. Qxe6 {[%clk 0:00:20.5]} 31... fxe6 {[%clk 0:00:15.1]} 32. Nb3
{[%clk 0:00:21.2]} 32... c5 {[%clk 0:00:11.9]} 33. Nxd4 {[%clk 0:00:21.5]} 33...
cxd4 {[%clk 0:00:12]} 34. Rxd3 {[%clk 0:00:22.4]} 34... e5 {[%clk 0:00:12.5]}
35. Rc1 {[%clk 0:00:21.7]} 35... Ra7 {[%clk 0:00:11.9]} 36. Rc5 {[%clk
0:00:21.7]} 36... Re7 {[%clk 0:00:12]} 37. Rb5 {[%clk 0:00:22.3]} 37... h6
{[%clk 0:00:10.5]} 38. Rxb4 {[%clk 0:00:22.5]} 38... Rf4 {[%clk 0:00:11]} 39.
Rb5 {[%clk 0:00:22.6]} 39... Kh7 {[%clk 0:00:10.7]} 40. Kc2 {[%clk 0:00:22.9]}
40... Rc7+ {[%clk 0:00:10.4]} 41. Kd2 {[%clk 0:00:23.2]} 41... Re7 {[%clk
0:00:10.4]} 42. Ke2 {[%clk 0:00:23.4]} 42... Rf8 {[%clk 0:00:10.7]} 43. b4
{[%clk 0:00:23.3]} 43... Rc8 {[%clk 0:00:10.6]} 44. Kd2 {[%clk 0:00:23.6]} 44...
Ra8 {[%clk 0:00:10.4]} 45. Ra5 {[%clk 0:00:22.3]} 45... Rb8 {[%clk 0:00:10.3]}
46. b5 {[%clk 0:00:22.3]} 46... Rb6 {[%clk 0:00:10.7]} 47. Rb3 {[%clk
0:00:22.5]} 47... Kg8 {[%clk 0:00:10.5]} 48. Ra6 {[%clk 0:00:22.9]} 48... Reb7
{[%clk 0:00:10.1]} 49. Rxb6 {[%clk 0:00:22]} 49... Rxb6 {[%clk 0:00:11]} 50. Kd3
{[%clk 0:00:22.9]} 50... Kf7 {[%clk 0:00:11.7]} 51. Kc4 {[%clk 0:00:23.6]} 51...
Ke7 {[%clk 0:00:11.9]} 52. Kc5 {[%clk 0:00:24.3]} 52... Rb8 {[%clk 0:00:10.9]}
53. Kc6 {[%clk 0:00:23]} 53... Ke6 {[%clk 0:00:07.5]} 54. b6 {[%clk 0:00:22.3]}
54... Rc8+ {[%clk 0:00:06.4]} 55. Kb7 {[%clk 0:00:21.8]} 55... Rc3 {[%clk
0:00:06.5]} 56. Rb1 {[%clk 0:00:20.4]} 56... Kd7 {[%clk 0:00:06.2]} 57. Ka7
{[%clk 0:00:20.5]} 57... Ra3+ {[%clk 0:00:06.5]} 58. Kb8 {[%clk 0:00:20.1]}
58... d3 {[%clk 0:00:07.1]} 59. b7 {[%clk 0:00:20.4]} 59... Ra2 {[%clk
0:00:07.5]} 60. Rb3 {[%clk 0:00:19.9]} 60... d2 {[%clk 0:00:07.3]} 61. Rd3+
{[%clk 0:00:20.7]} 61... Kc6 {[%clk 0:00:07.9]} 62. Kc8 {[%clk 0:00:20.9]} 62...
Rb2 {[%clk 0:00:04.4]} 63. b8=Q {[%clk 0:00:20.9]} 63... Rxb8+ {[%clk
0:00:04.5]} 64. Kxb8 {[%clk 0:00:21.8]} 1-0

[Event "Early-Titled-Tuesday-Blitz-September-26-2023"]
[Site "Chess.com"]
[Date "2023.09.26"]
[Round "3"]
[White "SchmakAttack"]
[Black "Andrej2004"]
[Result "1/2-1/2"]
[WhiteElo "2790"]
[BlackElo "2566"]
[TimeControl "180+1"]
[EndTime "8:29:08 PDT"]
[Termination "Game drawn - insufficient material"]

1. e4 {[%clk 0:03:00]} 1... e5 {[%clk 0:02:59.5]} 2. Bc4 {[%clk 0:02:58.7]} 2...
Nc6 {[%clk 0:02:57.3]} 3. d3 {[%clk 0:02:58.4]} 3... Nf6 {[%clk 0:02:57]} 4. Nc3
{[%clk 0:02:58.3]} 4... Na5 {[%clk 0:02:56.9]} 5. Bb3 {[%clk 0:02:56.8]} 5...
Nxb3 {[%clk 0:02:56.7]} 6. axb3 {[%clk 0:02:57.7]} 6... d5 {[%clk 0:02:56]} 7.
exd5 {[%clk 0:02:55.7]} 7... Nxd5 {[%clk 0:02:56.9]} 8. Nge2 {[%clk 0:02:56.2]}
8... Be7 {[%clk 0:02:44.9]} 9. O-O {[%clk 0:02:56]} 9... O-O {[%clk 0:02:44.4]}
10. Re1 {[%clk 0:02:55.7]} 10... f6 {[%clk 0:02:33.3]} 11. d4 {[%clk 0:02:49.7]}
11... Nxc3 {[%clk 0:02:31]} 12. bxc3 {[%clk 0:02:50]} 12... Bd6 {[%clk
0:02:20.9]} 13. Be3 {[%clk 0:02:24.5]} 13... Bg4 {[%clk 0:02:14.7]} 14. Qd3
{[%clk 0:02:18.1]} 14... a6 {[%clk 0:02:08.2]} 15. dxe5 {[%clk 0:02:14.7]} 15...
Bxe2 {[%clk 0:02:06.4]} 16. Qd5+ {[%clk 0:02:13.5]} 16... Kh8 {[%clk 0:01:46.1]}
17. exd6 {[%clk 0:02:13.2]} 17... Bb5 {[%clk 0:01:43.8]} 18. Qxb7 {[%clk
0:01:58.8]} 18... Qxd6 {[%clk 0:01:40.9]} 19. Rad1 {[%clk 0:01:56.5]} 19... Qc6
{[%clk 0:01:34.2]} 20. Qxc6 {[%clk 0:01:55.6]} 20... Bxc6 {[%clk 0:01:35.1]} 21.
Bf4 {[%clk 0:01:54.2]} 21... Rf7 {[%clk 0:01:26]} 22. Re6 {[%clk 0:01:40.6]}
22... Bd7 {[%clk 0:01:20.4]} 23. Re2 {[%clk 0:01:32.1]} 23... g5 {[%clk
0:01:16.9]} 24. Bxc7 {[%clk 0:01:23.7]} 24... Bg4 {[%clk 0:00:57.8]} 25. f3
{[%clk 0:01:23.5]} 25... Bxf3 {[%clk 0:00:58.4]} 26. gxf3 {[%clk 0:01:23.8]}
26... Rxc7 {[%clk 0:00:59]} 27. c4 {[%clk 0:01:23.9]} 27... a5 {[%clk
0:00:58.6]} 28. Ra1 {[%clk 0:01:21.3]} 28... a4 {[%clk 0:00:58.3]} 29. Ra3
{[%clk 0:01:21.2]} 29... Kg7 {[%clk 0:00:51.7]} 30. Kf2 {[%clk 0:01:15.9]} 30...
Raa7 {[%clk 0:00:50.9]} 31. Re6 {[%clk 0:01:02.1]} 31... Kg6 {[%clk 0:00:46]}
32. Rb6 {[%clk 0:00:54.2]} 32... h5 {[%clk 0:00:36.7]} 33. Rb4 {[%clk
0:00:52.1]} 33... axb3 {[%clk 0:00:32.6]} 34. Rxa7 {[%clk 0:00:53]} 34... Rxa7
{[%clk 0:00:26.9]} 35. Rxb3 {[%clk 0:00:29.6]} 35... Kf5 {[%clk 0:00:26.6]} 36.
Ke3 {[%clk 0:00:19.1]} 36... Ke5 {[%clk 0:00:22.1]} 37. Rb5+ {[%clk 0:00:17]}
37... Kd6 {[%clk 0:00:22.2]} 38. Rb6+ {[%clk 0:00:17.1]} 38... Ke5 {[%clk
0:00:20.3]} 39. Kd3 {[%clk 0:00:15.9]} 39... Ra3+ {[%clk 0:00:20]} 40. Rb3
{[%clk 0:00:15.9]} 40... Ra1 {[%clk 0:00:19.6]} 41. Rb5+ {[%clk 0:00:14.9]}
41... Kd6 {[%clk 0:00:19.9]} 42. c5+ {[%clk 0:00:13.3]} 42... Kd5 {[%clk
0:00:17.1]} 43. Rb6 {[%clk 0:00:04.4]} 43... Kxc5 {[%clk 0:00:16.6]} 44. Rxf6
{[%clk 0:00:04.5]} 44... Rh1 {[%clk 0:00:14.9]} 45. Rf5+ {[%clk 0:00:04]} 45...
Kd6 {[%clk 0:00:11.8]} 46. Rxg5 {[%clk 0:00:04]} 46... Rxh2 {[%clk 0:00:12.7]}
47. c4 {[%clk 0:00:04.1]} 47... Rh3 {[%clk 0:00:12.8]} 48. Ke4 {[%clk
0:00:04.1]} 48... Rh1 {[%clk 0:00:13.1]} 49. c5+ {[%clk 0:00:02.1]} 49... Kc6
{[%clk 0:00:13.5]} 50. f4 {[%clk 0:00:02.7]} 50... h4 {[%clk 0:00:13.4]} 51. Kf3
{[%clk 0:00:02.6]} 51... h3 {[%clk 0:00:12.7]} 52. Kg3 {[%clk 0:00:02.5]} 52...
h2 {[%clk 0:00:13]} 53. Kg2 {[%clk 0:00:02.3]} 53... Rf1 {[%clk 0:00:12.4]} 54.
Kxh2 {[%clk 0:00:02.2]} 54... Rxf4 {[%clk 0:00:12.6]} 55. Kg3 {[%clk 0:00:02.9]}
55... Rc4 {[%clk 0:00:12.9]} 56. Kf3 {[%clk 0:00:03.6]} 56... Rc3+ {[%clk
0:00:13.3]} 57. Ke4 {[%clk 0:00:03.1]} 57... Rxc5 {[%clk 0:00:14.2]} 58. Rxc5+
{[%clk 0:00:03.1]} 58... Kxc5 {[%clk 0:00:15.1]} 1/2-1/2

[Event "Early-Titled-Tuesday-Blitz-September-26-2023"]
[Site "Chess.com"]
[Date "2023.09.26"]
[Round "3"]
[White "TheoSlade"]
[Black "Aygehovit1992"]
[Result "0-1"]
[WhiteElo "2478"]
[BlackElo "2714"]
[TimeControl "180+1"]
[EndTime "8:29:14 PDT"]
[Termination "Aygehovit1992 won on time"]

1. d4 {[%clk 0:03:00.9]} 1... Nf6 {[%clk 0:02:56.6]} 2. c4 {[%clk 0:03:01.2]}
2... e6 {[%clk 0:02:57.3]} 3. g3 {[%clk 0:03:01.6]} 3... Bb4+ {[%clk 0:02:56.6]}
4. Nd2 {[%clk 0:03:01.5]} 4... O-O {[%clk 0:02:52.4]} 5. Bg2 {[%clk 0:03:01]}
5... d5 {[%clk 0:02:51.4]} 6. Nf3 {[%clk 0:03:01]} 6... b6 {[%clk 0:02:50.9]} 7.
O-O {[%clk 0:02:58.4]} 7... Bb7 {[%clk 0:02:51.3]} 8. a3 {[%clk 0:02:49.4]} 8...
Be7 {[%clk 0:02:51.3]} 9. cxd5 {[%clk 0:02:46.9]} 9... exd5 {[%clk 0:02:51.2]}
10. b4 {[%clk 0:02:45.2]} 10... c5 {[%clk 0:02:46.7]} 11. bxc5 {[%clk
0:02:43.5]} 11... bxc5 {[%clk 0:02:44.4]} 12. Qb3 {[%clk 0:02:39.1]} 12... Qc8
{[%clk 0:02:37]} 13. dxc5 {[%clk 0:02:36]} 13... Nbd7 {[%clk 0:02:35.2]} 14. c6
{[%clk 0:02:25.4]} 14... Bxc6 {[%clk 0:02:32.8]} 15. Nd4 {[%clk 0:02:18.1]}
15... Rb8 {[%clk 0:02:33.1]} 16. Qc3 {[%clk 0:01:56.8]} 16... Ba4 {[%clk
0:02:08.3]} 17. Bb2 {[%clk 0:01:53.6]} 17... Qxc3 {[%clk 0:02:03.3]} 18. Bxc3
{[%clk 0:01:54.1]} 18... Rfc8 {[%clk 0:02:02.9]} 19. Rfc1 {[%clk 0:01:52.3]}
19... g6 {[%clk 0:01:45]} 20. Bh3 {[%clk 0:01:48.6]} 20... Ne4 {[%clk 0:01:38]}
21. Nxe4 {[%clk 0:01:43.8]} 21... dxe4 {[%clk 0:01:38.9]} 22. e3 {[%clk
0:00:30.3]} 22... h5 {[%clk 0:01:24.4]} 23. Kf1 {[%clk 0:00:13.5]} 23... f5
{[%clk 0:01:21.9]} 24. Ke1 {[%clk 0:00:11.2]} 24... Ne5 {[%clk 0:01:21.8]} 25.
Bf1 {[%clk 0:00:10]} 25... Bf6 {[%clk 0:01:13.2]} 26. Be2 {[%clk 0:00:09.1]}
26... Nf3+ {[%clk 0:01:04.6]} 27. Bxf3 {[%clk 0:00:08.2]} 27... exf3 {[%clk
0:01:04.8]} 28. Kd2 {[%clk 0:00:06.7]} 28... Kf7 {[%clk 0:00:54]} 29. Rab1
{[%clk 0:00:06.8]} 29... Rxb1 {[%clk 0:00:29.9]} 30. Rxb1 {[%clk 0:00:07.2]}
30... Rc7 {[%clk 0:00:30.6]} 31. Rc1 {[%clk 0:00:07.7]} 31... Rd7 {[%clk
0:00:29.1]} 32. Ke1 {[%clk 0:00:07.4]} 32... Rc7 {[%clk 0:00:13.9]} 33. Kd2
{[%clk 0:00:07.4]} 33... Rd7 {[%clk 0:00:08.1]} 34. Ke1 {[%clk 0:00:07.6]} 34...
a6 {[%clk 0:00:08.3]} 35. Nxf3 {[%clk 0:00:05.7]} 35... Bxc3+ {[%clk 0:00:08.5]}
36. Rxc3 {[%clk 0:00:06.3]} 36... Rd1+ {[%clk 0:00:09.1]} 37. Ke2 {[%clk
0:00:07]} 37... Ra1 {[%clk 0:00:09.4]} 38. Nd4 {[%clk 0:00:05.5]} 38... Kf6
{[%clk 0:00:06]} 39. h4 {[%clk 0:00:06.1]} 39... Ra2+ {[%clk 0:00:05.4]} 40. Kf3
{[%clk 0:00:06.3]} 40... Bd1+ {[%clk 0:00:05.7]} 41. Kg2 {[%clk 0:00:06.4]}
41... Ba4 {[%clk 0:00:05.1]} 42. Kf3 {[%clk 0:00:05]} 42... Ke5 {[%clk
0:00:04.1]} 43. Nc6+ {[%clk 0:00:03.7]} 43... Kd6 {[%clk 0:00:03.8]} 44. Nd4
{[%clk 0:00:03.8]} 44... Kd5 {[%clk 0:00:03.6]} 45. Kg2 {[%clk 0:00:03.8]} 45...
Kd6 {[%clk 0:00:03.3]} 46. Nf3 {[%clk 0:00:03.8]} 46... Bc6 {[%clk 0:00:03]} 47.
Rd3+ {[%clk 0:00:02.7]} 47... Kc7 {[%clk 0:00:02.5]} 48. Rc3 {[%clk 0:00:03]}
48... Kb6 {[%clk 0:00:02.7]} 49. Rb3+ {[%clk 0:00:01.9]} 49... Ka5 {[%clk
0:00:03]} 50. Rc3 {[%clk 0:00:02.5]} 50... Be4 {[%clk 0:00:03.3]} 51. Rc4 {[%clk
0:00:02.8]} 51... Rxa3 {[%clk 0:00:02.8]} 52. Rc7 {[%clk 0:00:03.5]} 52... Ka4
{[%clk 0:00:02.7]} 53. Rg7 {[%clk 0:00:02.5]} 53... a5 {[%clk 0:00:03.2]} 54.
Rxg6 {[%clk 0:00:03.2]} 54... Rb3 {[%clk 0:00:03.1]} 55. Rg5 {[%clk 0:00:03.3]}
55... Kb5 {[%clk 0:00:03.2]} 56. Rxh5 {[%clk 0:00:03.9]} 56... a4 {[%clk
0:00:03.8]} 57. Rh8 {[%clk 0:00:04.5]} 57... a3 {[%clk 0:00:04.2]} 58. Rb8+
{[%clk 0:00:05.2]} 58... Ka4 {[%clk 0:00:04.1]} 59. Ra8+ {[%clk 0:00:06]} 59...
Bxa8 {[%clk 0:00:03.6]} 60. h5 {[%clk 0:00:06.9]} 60... a2 {[%clk 0:00:03.5]}
61. h6 {[%clk 0:00:06.3]} 61... Rb8 {[%clk 0:00:04.4]} 0-1

[Event "Early-Titled-Tuesday-Blitz-September-26-2023"]
[Site "Chess.com"]
[Date "2023.09.26"]
[Round "3"]
[White "CixPer1968"]
[Black "LileKoridze"]
[Result "1-0"]
[WhiteElo "2217"]
[BlackElo "2363"]
[TimeControl "180+1"]
[EndTime "8:29:18 PDT"]
[Termination "CixPer1968 won by resignation"]

1. d4 {[%clk 0:02:52.8]} 1... Nf6 {[%clk 0:02:57.2]} 2. c4 {[%clk 0:02:52.1]}
2... e6 {[%clk 0:02:55.6]} 3. Nf3 {[%clk 0:02:51.2]} 3... d5 {[%clk 0:02:55.2]}
4. Nc3 {[%clk 0:02:47.2]} 4... Bb4 {[%clk 0:02:55.1]} 5. cxd5 {[%clk 0:02:45.7]}
5... exd5 {[%clk 0:02:54.8]} 6. Qa4+ {[%clk 0:02:46.4]} 6... Nc6 {[%clk
0:02:54.3]} 7. Bg5 {[%clk 0:02:47.1]} 7... h6 {[%clk 0:02:51.8]} 8. Bxf6 {[%clk
0:02:46.7]} 8... Qxf6 {[%clk 0:02:51.2]} 9. e3 {[%clk 0:02:47.6]} 9... O-O
{[%clk 0:02:50.7]} 10. Be2 {[%clk 0:02:46.3]} 10... Bxc3+ {[%clk 0:02:07]} 11.
bxc3 {[%clk 0:02:45.1]} 11... Ne7 {[%clk 0:02:06.8]} 12. O-O {[%clk 0:02:37.2]}
12... c6 {[%clk 0:02:06.8]} 13. Rab1 {[%clk 0:02:36]} 13... b6 {[%clk
0:02:03.7]} 14. Ne5 {[%clk 0:02:34.1]} 14... Bf5 {[%clk 0:02:02.7]} 15. Bd3
{[%clk 0:02:30.5]} 15... Bxd3 {[%clk 0:01:58.1]} 16. Nxd3 {[%clk 0:02:31.4]}
16... Nf5 {[%clk 0:01:56.3]} 17. Ne5 {[%clk 0:02:29.8]} 17... Rfc8 {[%clk
0:01:34.2]} 18. c4 {[%clk 0:02:24.2]} 18... Nd6 {[%clk 0:01:17.1]} 19. cxd5
{[%clk 0:02:18.6]} 19... cxd5 {[%clk 0:01:15.9]} 20. Rfc1 {[%clk 0:02:12.8]}
20... Ne4 {[%clk 0:01:11.9]} 21. Nf3 {[%clk 0:02:09.9]} 21... Nc3 {[%clk
0:01:06.6]} 22. Qa6 {[%clk 0:01:40.2]} 22... Rc4 {[%clk 0:00:40.7]} 23. Ne5
{[%clk 0:00:57]} 23... Ne2+ {[%clk 0:00:29.2]} 24. Kf1 {[%clk 0:00:56.4]} 24...
Rxc1+ {[%clk 0:00:28.4]} 25. Rxc1 {[%clk 0:00:55]} 25... Nxc1 {[%clk 0:00:29.3]}
26. Qb7 {[%clk 0:00:50]} 26... Rf8 {[%clk 0:00:21.6]} 27. Qxa7 {[%clk
0:00:40.6]} 27... Qf5 {[%clk 0:00:18.6]} 28. Qxb6 {[%clk 0:00:36.1]} 28... Qc2
{[%clk 0:00:16.8]} 29. g3 {[%clk 0:00:29.6]} 29... Qe2+ {[%clk 0:00:13.3]} 30.
Kg2 {[%clk 0:00:29.2]} 30... Qxa2 {[%clk 0:00:13.4]} 31. Nd7 {[%clk 0:00:28.2]}
31... Re8 {[%clk 0:00:12.3]} 32. Ne5 {[%clk 0:00:28.1]} 32... Qa3 {[%clk
0:00:07.7]} 33. Qc6 {[%clk 0:00:28.1]} 33... Rd8 {[%clk 0:00:06.9]} 34. Qc7
{[%clk 0:00:27.3]} 34... Qf8 {[%clk 0:00:06.6]} 35. Qxc1 {[%clk 0:00:25.9]}
35... Qd6 {[%clk 0:00:05.1]} 36. Qc2 {[%clk 0:00:24.1]} 36... Re8 {[%clk
0:00:04.5]} 37. Qf5 {[%clk 0:00:24.1]} 37... Qe6 {[%clk 0:00:04.4]} 38. Qf4
{[%clk 0:00:23.8]} 38... f6 {[%clk 0:00:04.3]} 39. Ng6 {[%clk 0:00:23.7]} 39...
Qe4+ {[%clk 0:00:03.8]} 40. Qxe4 {[%clk 0:00:23.2]} 40... Rxe4 {[%clk
0:00:04.7]} 41. Nf4 {[%clk 0:00:23.7]} 41... Kf7 {[%clk 0:00:03.5]} 42. Nxd5
{[%clk 0:00:23.8]} 42... Re8 {[%clk 0:00:04.2]} 43. Nf4 {[%clk 0:00:23.9]} 43...
g5 {[%clk 0:00:04.2]} 44. Nd3 {[%clk 0:00:23.3]} 44... Rc8 {[%clk 0:00:04.4]}
45. Nc5 {[%clk 0:00:22.8]} 45... Ke7 {[%clk 0:00:04.4]} 46. Kf3 {[%clk 0:00:23]}
46... Rb8 {[%clk 0:00:04.2]} 47. Kg4 {[%clk 0:00:22.2]} 47... Rb2 {[%clk
0:00:04.4]} 48. Kf3 {[%clk 0:00:21.8]} 48... Rd2 {[%clk 0:00:03.9]} 49. Ne4
{[%clk 0:00:21]} 49... Rd1 {[%clk 0:00:03.7]} 50. h3 {[%clk 0:00:21.4]} 50...
Rh1 {[%clk 0:00:03.8]} 51. h4 {[%clk 0:00:21.3]} 51... gxh4 {[%clk 0:00:03.6]}
52. gxh4 {[%clk 0:00:21.8]} 52... Rxh4 {[%clk 0:00:03.4]} 53. Ng3 {[%clk
0:00:22.7]} 53... Rh2 {[%clk 0:00:02.6]} 54. e4 {[%clk 0:00:22.4]} 54... Ke6
{[%clk 0:00:02.6]} 55. Ke3 {[%clk 0:00:20.4]} 55... h5 {[%clk 0:00:02.6]} 56.
d5+ {[%clk 0:00:20]} 56... Ke5 {[%clk 0:00:02.5]} 57. f4+ {[%clk 0:00:18.6]}
57... Kd6 {[%clk 0:00:02.7]} 58. Nf5+ {[%clk 0:00:17.6]} 58... Kc5 {[%clk
0:00:03.2]} 59. Kf3 {[%clk 0:00:18]} 59... Rd2 {[%clk 0:00:03]} 60. d6 {[%clk
0:00:17.5]} 60... Kc6 {[%clk 0:00:02.1]} 61. e5 {[%clk 0:00:17.8]} 61... fxe5
{[%clk 0:00:02.1]} 62. fxe5 {[%clk 0:00:18.7]} 62... Rd5 {[%clk 0:00:02.4]} 63.
Ne7+ {[%clk 0:00:16.4]} 63... Kc5 {[%clk 0:00:02.9]} 64. Nxd5 {[%clk 0:00:16.6]}
64... Kxd5 {[%clk 0:00:03.8]} 65. d7 {[%clk 0:00:17.5]} 65... Kxe5 {[%clk
0:00:04.2]} 66. d8=Q {[%clk 0:00:17.6]} 66... Kf5 {[%clk 0:00:05.1]} 67. Qg8
{[%clk 0:00:17.6]} 67... h4 {[%clk 0:00:05.2]} 68. Kg2 {[%clk 0:00:17.6]} 68...
Kf4 {[%clk 0:00:05.1]} 69. Kh3 {[%clk 0:00:18.5]} 1-0

[Event "Early-Titled-Tuesday-Blitz-September-26-2023"]
[Site "Chess.com"]
[Date "2023.09.26"]
[Round "3"]
[White "Fore_Man"]
[Black "jeetjain"]
[Result "0-1"]
[WhiteElo "2289"]
[BlackElo "2582"]
[TimeControl "180+1"]
[EndTime "8:29:19 PDT"]
[Termination "jeetjain won by checkmate"]

1. Nf3 {[%clk 0:03:00.9]} 1... c5 {[%clk 0:02:56.6]} 2. c4 {[%clk 0:03:01.2]}
2... Nc6 {[%clk 0:02:56.9]} 3. d4 {[%clk 0:03:01.7]} 3... cxd4 {[%clk
0:02:56.7]} 4. Nxd4 {[%clk 0:03:02.6]} 4... e6 {[%clk 0:02:56.3]} 5. g3 {[%clk
0:03:02.4]} 5... Nf6 {[%clk 0:02:56.1]} 6. Bg2 {[%clk 0:03:02.5]} 6... Be7
{[%clk 0:02:52.1]} 7. O-O {[%clk 0:03:01.6]} 7... O-O {[%clk 0:02:52.5]} 8. Nc3
{[%clk 0:03:01.6]} 8... a6 {[%clk 0:02:52.9]} 9. b3 {[%clk 0:03:01.8]} 9... Qc7
{[%clk 0:02:53]} 10. Bb2 {[%clk 0:03:01.7]} 10... b6 {[%clk 0:02:53.6]} 11. Nxc6
{[%clk 0:02:59.5]} 11... dxc6 {[%clk 0:02:53.5]} 12. e4 {[%clk 0:02:57.1]} 12...
Bb7 {[%clk 0:02:52.7]} 13. f4 {[%clk 0:02:57.1]} 13... Rfd8 {[%clk 0:02:52]} 14.
Qe2 {[%clk 0:02:56.3]} 14... e5 {[%clk 0:02:45.3]} 15. fxe5 {[%clk 0:02:46]}
15... Nd7 {[%clk 0:02:42.8]} 16. e6 {[%clk 0:02:44.1]} 16... fxe6 {[%clk
0:02:42.9]} 17. Bh3 {[%clk 0:02:42.6]} 17... Nf8 {[%clk 0:02:38.8]} 18. Rad1
{[%clk 0:02:29.5]} 18... b5 {[%clk 0:02:30.5]} 19. Qg4 {[%clk 0:02:19.9]} 19...
Bc5+ {[%clk 0:02:26.8]} 20. Kh1 {[%clk 0:02:19.1]} 20... e5 {[%clk 0:02:14.8]}
21. Qg5 {[%clk 0:02:10.6]} 21... Rxd1 {[%clk 0:02:06.5]} 22. Rxd1 {[%clk
0:02:10.1]} 22... Bd4 {[%clk 0:02:03.8]} 23. Rf1 {[%clk 0:01:53.5]} 23... h6
{[%clk 0:01:55.3]} 24. Qf5 {[%clk 0:01:52.1]} 24... Rd8 {[%clk 0:01:48.6]} 25.
Bg4 {[%clk 0:01:42.9]} 25... Bc8 {[%clk 0:01:40.9]} 26. Qf3 {[%clk 0:01:41.8]}
26... Bxg4 {[%clk 0:01:38.6]} 27. Qxg4 {[%clk 0:01:42.7]} 27... bxc4 {[%clk
0:01:33.3]} 28. bxc4 {[%clk 0:01:41.4]} 28... Rb8 {[%clk 0:01:33.9]} 29. Ba1
{[%clk 0:01:31.8]} 29... Qe7 {[%clk 0:01:33.2]} 30. Qf3 {[%clk 0:01:23.5]} 30...
Ne6 {[%clk 0:01:32.1]} 31. Qh5 {[%clk 0:01:04.4]} 31... Rf8 {[%clk 0:01:28.4]}
32. Rxf8+ {[%clk 0:00:59.2]} 32... Qxf8 {[%clk 0:01:29.3]} 33. Qe2 {[%clk
0:00:51.1]} 33... Ng5 {[%clk 0:01:28.6]} 34. Kg2 {[%clk 0:00:48.2]} 34... Qa3
{[%clk 0:01:21]} 35. Nb1 {[%clk 0:00:43.9]} 35... Qc1 {[%clk 0:01:14.8]} 36.
Bxd4 {[%clk 0:00:36.5]} 36... exd4 {[%clk 0:01:15.7]} 37. Nd2 {[%clk 0:00:35.9]}
37... Qc2 {[%clk 0:01:12.5]} 38. e5 {[%clk 0:00:34]} 38... Kf7 {[%clk
0:01:06.6]} 39. h4 {[%clk 0:00:27.8]} 39... Ne6 {[%clk 0:01:00.8]} 40. Kh3
{[%clk 0:00:26.7]} 40... Ke7 {[%clk 0:00:58.4]} 41. Qf2 {[%clk 0:00:19.8]} 41...
c5 {[%clk 0:00:51.4]} 42. Qg2 {[%clk 0:00:19.7]} 42... Qf5+ {[%clk 0:00:48]} 43.
Kh2 {[%clk 0:00:19]} 43... Qxe5 {[%clk 0:00:48.4]} 44. Qb7+ {[%clk 0:00:17.1]}
44... Kf8 {[%clk 0:00:46]} 45. Ne4 {[%clk 0:00:16.9]} 45... d3 {[%clk
0:00:41.9]} 46. Qc8+ {[%clk 0:00:16.4]} 46... Ke7 {[%clk 0:00:35.9]} 47. Qb7+
{[%clk 0:00:15.4]} 47... Qc7 {[%clk 0:00:30.8]} 48. Qd5 {[%clk 0:00:13.9]} 48...
Qd7 {[%clk 0:00:27.3]} 49. Qe5 {[%clk 0:00:11]} 49... d2 {[%clk 0:00:24.4]} 50.
Nxc5 {[%clk 0:00:11.2]} 50... d1=Q {[%clk 0:00:19.4]} 51. Nxd7 {[%clk
0:00:11.4]} 51... Qxd7 {[%clk 0:00:20.3]} 52. c5 {[%clk 0:00:11.4]} 52... Qd2+
{[%clk 0:00:20.1]} 53. Kh3 {[%clk 0:00:11.5]} 53... Qc1 {[%clk 0:00:18.5]} 54.
Qd6+ {[%clk 0:00:11.5]} 54... Kf6 {[%clk 0:00:18.1]} 55. c6 {[%clk 0:00:08.8]}
55... Qh1+ {[%clk 0:00:17]} 56. Kg4 {[%clk 0:00:08.7]} 56... Qe4+ {[%clk
0:00:16.9]} 57. Kh3 {[%clk 0:00:08.9]} 57... Qh1+ {[%clk 0:00:14.6]} 58. Kg4
{[%clk 0:00:09]} 58... h5+ {[%clk 0:00:15.5]} 59. Kxh5 {[%clk 0:00:08.8]} 59...
Qf3+ {[%clk 0:00:15.6]} 60. g4 {[%clk 0:00:09.4]} 60... g6+ {[%clk 0:00:15.5]}
61. Kh6 {[%clk 0:00:10]} 61... Qxg4 {[%clk 0:00:15.9]} 62. Kh7 {[%clk
0:00:05.4]} 62... Qxh4+ {[%clk 0:00:16.2]} 63. Kg8 {[%clk 0:00:05.9]} 63... Qh6
{[%clk 0:00:16.6]} 64. Qd8+ {[%clk 0:00:02.4]} 64... Nxd8 {[%clk 0:00:16.3]} 65.
c7 {[%clk 0:00:03.1]} 65... Qg7# {[%clk 0:00:16.7]} 0-1